[Event "VII Lorca Open 2018"]
[Site "Lorca"]
[Date "2018.12.29"]
[Round "6"]
[White "Jimenez Ruano, Adrian"]
[Black "Mingarro Carceller, Sergi"]
[Result "1-0"]
[ECO "E40"]
[WhiteElo "2245"]
[BlackElo "2361"]
[Annotator "NA"]
[PlyCount "49"]
[EventDate "2018.12.26"]
[EventType "swiss"]
[EventCountry "ESP"]
[SourceTitle "playchess.com"]
[Source "ChessBase"]
[SourceQuality "1"]
[TimeControl "5400+30"]

1. d4 {[%emt 0:00:00]} d5 {[%emt 0:00:00]} 2. c4 {[%emt 0:00:00]} e6 {[%emt 0:00:00]} 3. Nc3 {[%emt 0:00:00]} Bb4 {[%emt 0:00:00]} 4. e3 {[%emt 0:00:22]} Nf6 {[%emt 0:00:02]} 5. a3 {[%emt 0:00:14]} Bxc3+ {[%emt 0:00:38]} 6. bxc3 {[%emt 0:00:02]} c6 {[%emt 0:00:15] E40: Nimzo-Indian: Rubinstein (4 e3): Unusual Black 4th moves} (6... c5 7. Nf3 O-O 8. Be2 dxc4 9. Bxc4 Qc7 10. Be2 b6 11. O-O Bb7 12. Bb2 Nbd7 13. h3 Rfd8 14. a4 Rac8 15. a5 h6 16. axb6 axb6 17. Ra7 Ra8 18. Rxa8 Rxa8 19. c4 Rc8 20. Qb3 Qc6 {½-½ (51) Nepomniachtchi,I (2768)-Inarkiev,E (2690) Satka 2018}) 7. a4 {[%emt 0:00:26]} O-O {[%emt 0:00:14]} 8. Nf3 {[%emt 1:32:56]} b6 {[%emt 0:01:52]} 9. Bd3 {[%emt 0:00:30]} Ba6 10. cxd5 {[%emt 0:00:30]} cxd5 {[%emt 0:01:00]} 11. Bxa6 {[%emt 0:00:30]} Nxa6 {[%emt 0:06:40]} 12. Qd3 {[%emt 0:00:30]} Qc7 $2 $146 {[%emt 0:00:30]} (12... Nb8 $11 {and Black is okay.}) ({Predecessor:} 12... Nc7 13. Bd2 Re8 14. h4 Ne4 15. Ne5 {½-½ (49) Henrotte,N (1655)-Laarhoven,M (1716) Maastricht 2010}) 13. Ba3 {[%emt 0:00:30]} Rfc8 {[%emt 0:00:30]} 14. Qxa6 {[%emt 0:00:30]} Qxc3+ {[%emt 0:00:30]} 15. Ke2 {[%emt 0:00:30]} Qc2+ {[%emt 0:00:30]} 16. Nd2 {[%emt 0:00:30]} Ne4 {[%emt 0:00:30]} 17. Bb4 {[%emt 0:00:30]} Rc3 {[%emt 0:00:30]} 18. Rhd1 {[%emt 0:00:30]} b5 {[%emt 0:00:30]} 19. Rac1 {[%emt 0:00:30]} Qd3+ $18 {[%emt 0:00:30]} 20. Ke1 Qxd2+ 21. Rxd2 Rxc1+ 22. Rd1 Rc4 23. Qxb5 h6 24. f3 Nf6 25. Bc5 {[%emt 0:00:00]} 1-0

[Event "VII Lorca Open 2018"]
[Site "Lorca"]
[Date "2018.12.29"]
[Round "6"]
[White "Sreeshwan Maralakshikari"]
[Black "Domingo Nunez, Ruben"]
[Result "1/2-1/2"]
[ECO "E52"]
[WhiteElo "2244"]
[BlackElo "2383"]
[Annotator "NA"]
[PlyCount "60"]
[EventDate "2018.12.26"]
[EventType "swiss"]
[EventCountry "ESP"]
[SourceTitle "playchess.com"]
[Source "ChessBase"]
[SourceQuality "1"]
[TimeControl "5400+30"]

1. d4 {[%emt 0:00:00]} Nf6 {[%emt 0:01:59]} 2. c4 {[%emt 0:00:00]} e6 {[%emt 0:00:02]} 3. Nc3 {[%emt 0:00:00]} Bb4 {[%emt 0:00:03]} 4. e3 {[%emt 0:00:00]} O-O {[%emt 0:00:04]} 5. Bd3 {[%emt 0:00:00]} d5 {[%emt 0:00:04]} 6. Nf3 {[%emt 0:00:00]} b6 {[%emt 0:00:15]} 7. O-O {[%emt 1:33:30]} Bb7 {[%emt 0:00:05]} 8. cxd5 {[%emt 0:00:00]} exd5 {[%emt 0:00:35]} 9. Bd2 {[%emt 0:01:00]} a6 {[%emt 0:03:28]} 10. Ne5 {[%emt 0:00:18] E52: Nimzo-Indian: Rubinstein: 4...0-0 5 Nf3 d5 6 Bd3 b6} Bd6 {[%emt 0:00:30]} 11. f4 {[%emt 0:00:30]} c5 {[%emt 0:00:30]} 12. Rc1 {[%emt 0:00:30]} Nbd7 {[%emt 0:00:30]} (12... Nc6 13. Ne2 Ne7 14. Be1 Ne4 15. Ng3 cxd4 16. exd4 b5 17. Kh1 f6 18. Ng4 Qd7 {0-1 (38) Duda,J (2717)-Zhigalko,S (2641) Katowice 2017}) 13. Be1 {[%emt 0:00:30]} Ne4 {[%emt 0:00:30]} 14. Nxe4 $146 {[%emt 0:00:30]} ({Predecessor:} 14. Qh5 Ndf6 15. Qh3 Nxc3 16. Bxc3 Ne4 17. Bxe4 dxe4 18. dxc5 bxc5 {1-0 (32) Valenzuela Gomez,F (2389)-Perez Pastora,E (2103) Barcelona 2018}) 14... dxe4 {[%emt 0:00:30]} 15. Bc4 {[%emt 0:00:30]} Nf6 {[%emt 0:00:30]} 16. Qb3 {[%emt 0:00:30]} Qc7 {[%emt 0:00:30]} 17. a4 {[%emt 0:00:30]} b5 {[%emt 0:00:30]} 18. axb5 {[%emt 0:00:30]} axb5 {[%emt 0:00:30]} 19. Qxb5 {[%emt 0:00:30]} Ba6 {[%emt 0:00:30]} 20. Qb3 {[%emt 0:00:30]} Rab8 {[%emt 0:00:30]} 21. Qd1 {[%emt 0:00:30]} (21. Qa3 $16 Bxc4 22. Nxc4) 21... Bxc4 {[%emt 0:00:30]} 22. Nxc4 {[%emt 0:00:30]} cxd4 {[%emt 0:00:30]} 23. Qxd4 {[%emt 0:00:00]} Bc5 {[%emt 0:10:28]} 24. Qd1 {[%emt 0:07:30]} Rfd8 $11 {[%emt 1:10:38]} (24... Rbd8 $5 {[%cal Rd8d1]} 25. Qe2 Nd5 $14) 25. Qe2 {[%emt 0:00:00]} Nd5 {[%emt 0:00:30]} 26. Ba5 {[%emt 0:00:00]} Bxe3+ {[%emt 0:00:30]} 27. Qxe3 {[%emt 0:00:00]} Qxa5 {[%emt 0:00:30]} 28. Qxe4 {[%emt 0:00:00]} Qa7+ {[%emt 0:00:30]} 29. Kh1 {[%emt 0:00:00]} Nf6 {[%emt 0:11:35]} 30. Qf5 {[%emt 0:00:00]} Qa4 {[%emt 0:00:30]} 1/2-1/2

[Event "VII Lorca Open 2018"]
[Site "Lorca"]
[Date "2018.12.29"]
[Round "6"]
[White "Martinez Fernandez, Adrian"]
[Black "Domingo Nunez, Alejandro"]
[Result "1/2-1/2"]
[ECO "C01"]
[WhiteElo "2212"]
[BlackElo "2404"]
[Annotator "NA"]
[PlyCount "47"]
[EventDate "2018.12.26"]
[EventType "swiss"]
[EventCountry "ESP"]
[SourceTitle "playchess.com"]
[Source "ChessBase"]
[SourceQuality "1"]
[TimeControl "5400+30"]

1. e4 {[%emt 0:00:00]} e6 {[%emt 0:00:00]} 2. d4 {[%emt 0:00:00]} d5 {[%emt 0:00:05]} 3. exd5 {[%emt 0:00:22]} exd5 {[%emt 0:00:07]} 4. Nf3 {[%emt 0:00:07]} Bd6 {[%emt 0:01:59]} 5. Bd3 {[%emt 0:00:36]} Nc6 {[%emt 0:01:22]} 6. c3 {[%emt 0:02:28]} Nge7 {[%emt 0:03:29]} 7. O-O {[%emt 0:00:12]} Bg4 {[%emt 0:03:15]} 8. Nbd2 {[%emt 0:00:14]} Qd7 {[%emt 0:00:32]} 9. Re1 {[%emt 0:00:12]} O-O {[%emt 0:08:37]} 10. Qc2 {[%emt 0:00:12]} Bf5 {[%emt 0:06:46]} 11. Nf1 {[%emt 0:00:10]} Bxd3 {[%emt 0:01:11]} 12. Qxd3 {[%emt 0:00:10]} Qf5 {[%emt 0:00:53]} 13. Qxf5 {[%emt 0:00:10]} Nxf5 {[%emt 0:00:04]} 14. Ng3 {[%emt 0:00:15]} Nxg3 {[%emt 0:00:46]} 15. hxg3 {[%emt 0:00:11]} f6 {[%emt 0:02:10]} 16. Bf4 {[%emt 0:00:24]} Bxf4 {[%emt 0:00:53]} 17. gxf4 {[%emt 0:00:07]} Kf7 {[%emt 0:00:27]} 18. Kf1 {[%emt 0:00:54]} Ne7 {[%emt 0:01:01]} 19. Nh4 {[%emt 0:03:24]} Nc8 {[%emt 0:04:56]} 20. Re2 {[%emt 0:02:13]} Nd6 {[%emt 0:01:02]} 21. Rae1 {[%emt 0:00:43]} Rae8 {[%emt 0:04:08]} 22. Rxe8 {[%emt 0:02:13]} Rxe8 {[%emt 0:00:07]} 23. Rxe8 {[%emt 0:00:28]} Kxe8 {[%emt 0:00:28]} 24. Ke2 {[%emt 0:03:32]} 1/2-1/2

[Event "VII Lorca Open 2018"]
[Site "Lorca"]
[Date "2018.12.29"]
[Round "6"]
[White "Aguilera Lopez, Alejandro"]
[Black "Tejedor Fuente, Enrique"]
[Result "0-1"]
[ECO "D02"]
[WhiteElo "2198"]
[BlackElo "2428"]
[Annotator "NA"]
[PlyCount "114"]
[EventDate "2018.12.26"]
[EventType "swiss"]
[EventCountry "ESP"]
[SourceTitle "playchess.com"]
[Source "ChessBase"]
[SourceQuality "1"]
[TimeControl "5400+30"]

1. d4 {[%emt 0:00:00]} d5 {[%emt 0:02:12]} 2. Nf3 {[%emt 0:00:00]} c5 {[%emt 0:01:56]} 3. e3 {[%emt 0:00:00]} Nc6 {[%emt 0:01:20]} 4. Nbd2 {[%emt 0:00:15]} cxd4 {[%emt 0:00:06]} 5. exd4 {[%emt 1:32:15]} Bf5 6. Bb5 {[%emt 0:00:00]} e6 {[%emt 0:04:29]} 7. O-O {[%emt 0:00:00]} Bd6 {[%emt 0:00:31]} 8. c3 {[%emt 0:00:00]} h6 {[%emt 0:03:02]} 9. Ne5 {[%emt 0:00:00]} Nge7 {[%emt 0:00:53]} 10. Qe2 {[%emt 0:00:00]} O-O {[%emt 0:01:13]} 11. f4 {[%emt 0:00:00]} a6 {[%emt 0:01:01]} 12. Bd3 {[%emt 0:00:00]} Bxd3 {[%emt 0:00:37]} 13. Qxd3 {[%emt 0:00:00]} b5 {[%emt 0:00:27]} 14. a3 {[%emt 0:00:00]} Ra7 {[%emt 0:02:42]} 15. Ndf3 {[%emt 0:00:00]} Qb6 {[%emt 0:00:35]} 16. g4 {[%emt 0:00:00]} f6 {[%emt 0:06:21]} 17. Nxc6 {[%emt 0:00:00]} Qxc6 {[%emt 0:04:20]} 18. Be3 {[%emt 0:00:00]} Qe8 {[%emt 0:01:00]} 19. Rae1 {[%emt 0:00:00]} Qg6 {[%emt 0:05:16]} 20. Qxg6 {[%emt 0:00:00]} Nxg6 {[%emt 0:00:03]} 21. f5 {[%emt 0:00:00]} exf5 {[%emt 0:00:01]} 22. gxf5 {[%emt 0:00:00]} Ne7 {[%emt 0:00:08]} 23. Nh4 {[%emt 0:00:00]} a5 {[%emt 0:02:50]} 24. Bd2 {[%emt 0:00:00]} b4 {[%emt 0:12:06]} 25. Re6 {[%emt 0:00:00]} Rd8 {[%emt 0:00:31]} 26. cxb4 {[%emt 0:00:00]} axb4 {[%emt 0:00:09]} 27. Bxb4 {[%emt 0:00:00]} Bxb4 {[%emt 0:00:30]} 28. axb4 {[%emt 0:00:00]} Rb8 {[%emt 0:01:49]} 29. Ng6 {[%emt 0:00:00]} Kf7 {[%emt 0:00:48]} 30. Nxe7 {[%emt 0:00:00]} Rxe7 {[%emt 0:00:02]} 31. Rxe7+ {[%emt 0:00:00]} Kxe7 {[%emt 0:00:30]} 32. Re1+ {[%emt 0:00:00]} Kf7 {[%emt 0:00:46]} 33. Ra1 {[%emt 0:00:00]} Rxb4 {[%emt 0:00:21]} 34. Ra7+ {[%emt 0:00:00]} Kg8 {[%emt 0:00:14]} 35. Ra8+ {[%emt 0:00:00]} Kh7 {[%emt 0:00:01]} 36. Rd8 {[%emt 0:00:00]} Rxd4 {[%emt 0:00:02]} 37. Kg2 {[%emt 0:00:00]} h5 {[%emt 0:02:48]} 38. Kf3 {[%emt 0:00:00]} Kh6 {[%emt 0:02:00]} 39. Rd7 {[%emt 0:00:00]} Rd1 {[%emt 0:18:42]} 40. Ke3 {[%emt 0:00:00]} Rb1 {[%emt 0:02:20]} 41. Rb7 {[%emt 0:00:00]} Rf1 {[%emt 0:00:30]} 42. b4 {[%emt 0:00:00]} Rxf5 {[%emt 0:00:30]} 43. b5 {[%emt 0:00:00]} g5 {[%emt 0:00:30]} 44. b6 {[%emt 0:00:00]} Rf4 {[%emt 0:00:30]} 45. Rb8 {[%emt 0:00:00]} Rb4 {[%emt 0:00:30]} 46. b7 {[%emt 0:00:00]} Kg7 {[%emt 0:00:30]} 47. Kd3 {[%emt 0:00:00]} g4 {[%emt 0:00:30]} 48. Kc3 {[%emt 0:00:00]} Rb5 {[%emt 0:00:30]} 49. Kd4 {[%emt 0:00:00]} h4 {[%emt 0:00:30]} 50. Ke3 {[%emt 0:00:00]} Rb4 {[%emt 0:00:30]} 51. Kd3 {[%emt 0:00:00]} g3 {[%emt 0:00:30]} 52. hxg3 {[%emt 0:00:00]} h3 {[%emt 0:00:30]} 53. Ra8 {[%emt 0:00:00]} h2 {[%emt 0:00:30]} 54. Ra1 {[%emt 0:00:00]} Rxb7 {[%emt 0:00:30]} 55. Rh1 {[%emt 0:00:00]} Rb2 {[%emt 0:00:30]} 56. Ke3 {[%emt 0:00:00]} Kg6 {[%emt 0:00:30]} 57. Kf4 {[%emt 0:00:00]} d4 {[%emt 0:00:30]} 0-1

[Event "VII Lorca Open 2018"]
[Site "Lorca"]
[Date "2018.12.29"]
[Round "6"]
[White "Manu David Suthandram R"]
[Black "Vazquez Igarza, Renier"]
[Result "1/2-1/2"]
[ECO "B30"]
[WhiteElo "2153"]
[BlackElo "2570"]
[Annotator "ChessBase"]
[PlyCount "86"]
[EventDate "2018.12.26"]
[EventType "swiss"]
[EventCountry "ESP"]
[SourceTitle "playchess.com"]
[Source "ChessBase"]
[SourceQuality "1"]
[TimeControl "5400+30"]

1. e4 {[%emt 0:00:00]} c5 {[%emt 0:06:11]} 2. Nf3 {[%emt 1:31:00]} e6 3. Nc3 Nc6 4. Bb5 Nge7 5. O-O a6 6. Bxc6 Nxc6 7. e5 d5 8. exd6 Bxd6 9. d3 Be7 10. Ne4 O-O 11. c3 b6 12. Re1 Bb7 13. d4 cxd4 14. cxd4 Rc8 15. a3 Na5 16. Qd3 Qd5 17. Nc3 Qc4 18. Qxc4 Nxc4 19. d5 Bf6 20. dxe6 fxe6 21. Ne4 Bxe4 22. Rxe4 Nxb2 23. Rb1 Nc4 24. Rxe6 Kf7 25. Re2 b5 26. a4 bxa4 27. Ra2 Rfd8 28. Kf1 Rd5 29. Rxa4 a5 30. Bf4 h6 31. g4 Bc3 32. Kg2 Nb2 33. Ra3 Nd3 34. Be3 Bf6 35. Kf1 Nb2 36. Nd2 Rc2 37. Ke1 a4 38. Ne4 Be7 39. Rxb2 Rxb2 40. Rxa4 Rb4 41. Rxb4 Bxb4+ 42. Ke2 Ra5 43. Kf3 {[%emt 0:00:00]} Be7 {[%emt 0:20:09]} 1/2-1/2

[Event "VII Lorca Open 2018"]
[Site "Lorca"]
[Date "2018.12.29"]
[Round "6"]
[White "Korneev Leskova, Svyatoslav"]
[Black "Melero Fidalgo, Juan De Dios"]
[Result "1-0"]
[ECO "A21"]
[WhiteElo "2134"]
[BlackElo "2348"]
[Annotator "NA"]
[PlyCount "43"]
[EventDate "2018.12.26"]
[EventType "swiss"]
[EventCountry "ESP"]
[SourceTitle "playchess.com"]
[Source "ChessBase"]
[SourceQuality "1"]
[TimeControl "5400+30"]

1. c4 {[%emt 0:01:16]} e5 {[%emt 0:00:00]} 2. Nc3 {[%emt 0:00:08]} Bb4 {[%emt 0:00:12]} 3. Nd5 {[%emt 0:00:15]} Be7 {[%emt 0:00:10]} 4. g3 {[%emt 0:02:35]} c6 {[%emt 0:00:06]} 5. Nxe7 {[%emt 0:04:56]} Qxe7 {[%emt 0:00:30]} 6. Bg2 {[%emt 0:00:30]} Nf6 {[%emt 0:00:30]} 7. e4 {[%emt 0:00:30]} O-O {[%emt 0:00:30]} 8. Ne2 {[%emt 0:00:30]} Na6 {[%emt 0:00:30]} 9. d3 {[%emt 0:00:30]} Rd8 {[%emt 0:00:30]} 10. Nc3 {[%emt 0:00:30]} Nc7 {[%emt 0:00:30]} 11. Qb3 {[%emt 0:00:30]} Ne6 {[%emt 0:00:30]} 12. O-O {[%emt 0:00:30]} d6 {[%emt 0:00:30]} 13. h3 {[%emt 0:00:30]} Rb8 {[%emt 0:00:30]} 14. a4 {[%emt 0:00:30]} Nd7 {[%emt 0:00:30]} 15. Be3 {[%emt 0:00:30]} a5 {[%emt 0:00:30]} 16. Qa3 {[%emt 0:00:30]} Nec5 {[%emt 0:00:30]} 17. Rfd1 {[%emt 0:00:30]} Na6 {[%emt 0:00:30]} 18. Na2 {[%emt 0:00:30]} Ndc5 {[%emt 0:00:30]} 19. b4 {[%emt 0:00:30]} axb4 {[%emt 0:00:30]} 20. Nxb4 {[%emt 0:00:30]} Ra8 {[%emt 0:00:30]} 21. Nxa6 {[%emt 0:00:30]} Rxa6 {[%emt 0:00:30]} 22. Qb4 {[%emt 0:00:30]} 1-0

[Event "VII Lorca Open 2018"]
[Site "Lorca"]
[Date "2018.12.29"]
[Round "7"]
[White "Arjun Kalyan"]
[Black "Nayhebaver, Martin"]
[Result "1/2-1/2"]
[ECO "B66"]
[WhiteElo "2406"]
[BlackElo "2460"]
[Annotator "RC"]
[PlyCount "40"]
[EventDate "2018.12.26"]
[EventType "swiss"]
[EventCountry "ESP"]
[SourceTitle "playchess.com"]
[Source "ChessBase"]
[SourceQuality "1"]
[TimeControl "5400+30"]

1. e4 {[%emt 0:00:00]} c5 {[%emt 0:00:00]} 2. Nf3 {[%emt 0:00:00]} d6 {[%emt 0:00:17]} 3. d4 {[%emt 0:00:00]} cxd4 {[%emt 0:00:05]} 4. Nxd4 {[%emt 0:00:00]} Nf6 {[%emt 0:00:10]} 5. Nc3 {[%emt 0:00:00]} Nc6 {[%emt 0:00:12]} 6. Bg5 {[%emt 0:00:33]} e6 {[%emt 0:00:19]} 7. Qd2 {[%emt 0:00:26]} Be7 {[%emt 0:00:20]} 8. O-O-O {[%emt 0:03:41]} a6 {[%emt 0:00:42]} 9. f3 {[%emt 0:01:32]} Qc7 {[%emt 0:04:01]} 10. h4 {[%emt 0:03:03]} Ne5 {[%emt 0:02:36]} 11. Kb1 {[%emt 0:01:44]} Rb8 {[%emt 0:01:08]} 12. g4 {[%emt 0:13:34]} b5 {[%emt 0:03:05]} 13. Qg2 {[%emt 0:07:14]} b4 {[%emt 0:05:37]} 14. Nce2 {[%emt 0:00:15]} Bb7 {[%emt 0:00:44]} 15. Ng3 {[%emt 0:20:48]} d5 {[%emt 0:15:38]} 16. Bf4 {[%emt 0:02:25]} dxe4 {[%emt 0:05:06]} 17. fxe4 {[%emt 0:00:18]} Nfd7 {[%emt 0:05:00]} 18. g5 {[%emt 0:02:49]} Rc8 {[%emt 0:02:28]} 19. h5 {[%emt 0:01:26]} Qb6 {[%emt 0:00:41]} 20. Be2 {[%emt 0:03:59]} Rf8 {[%emt 0:19:32]} 1/2-1/2

[Event "VII Lorca Open 2018"]
[Site "Lorca"]
[Date "2018.12.29"]
[Round "7"]
[White "Domingo Nunez, Alejandro"]
[Black "Orantes Taboada, Francisco"]
[Result "1-0"]
[ECO "B33"]
[WhiteElo "2404"]
[BlackElo "2295"]
[Annotator "ChessBase"]
[PlyCount "38"]
[EventDate "2018.12.26"]
[EventType "swiss"]
[EventCountry "ESP"]
[SourceTitle "playchess.com"]
[Source "ChessBase"]
[SourceQuality "1"]
[TimeControl "5400+30"]

1. e4 {[%emt 0:00:00]} c5 {[%emt 0:00:00]} 2. Nf3 {[%emt 0:00:00]} Nc6 {[%emt 0:00:00]} 3. d4 {[%emt 0:00:00]} cxd4 {[%emt 0:00:00]} 4. Nxd4 {[%emt 0:00:00]} Nf6 {[%emt 0:00:00]} 5. Nc3 {[%emt 0:00:00]} e5 {[%emt 0:00:00]} 6. Ndb5 {[%emt 0:01:01]} d6 {[%emt 0:00:03]} 7. Bg5 {[%emt 0:00:37]} a6 {[%emt 0:00:22]} 8. Na3 {[%emt 0:02:09]} b5 {[%emt 0:01:55]} 9. Nd5 {[%emt 0:00:19]} Be7 {[%emt 0:00:23]} 10. Bxf6 {[%emt 0:01:02]} Bxf6 {[%emt 0:00:13]} 11. c3 {[%emt 0:01:49]} O-O {[%emt 0:00:23]} 12. Nc2 {[%emt 0:00:36]} Rb8 {[%emt 0:00:22]} 13. a4 {[%emt 0:04:12]} Bg5 {[%emt 0:09:10]} 14. axb5 {[%emt 0:04:13]} axb5 {[%emt 0:00:45]} 15. Bd3 {[%emt 0:01:29]} Be6 {[%emt 0:31:54]} 16. Qe2 {[%emt 0:07:32]} Bxd5 {[%emt 0:06:10]} 17. exd5 {[%emt 0:00:07]} Ne7 {[%emt 0:00:04]} 18. Nb4 {[%emt 0:00:44]} Qc8 {[%emt 0:15:49]} 19. Bxb5 {[%emt 0:30:31]} Ng6 {[%emt 0:07:38]} 1-0

[Event "VII Lorca Open 2018"]
[Site "Lorca"]
[Date "2018.12.29"]
[Round "7"]
[White "Sabuk, Piotr"]
[Black "Manu David Suthandram R"]
[Result "0-1"]
[ECO "D30"]
[WhiteElo "2391"]
[BlackElo "2153"]
[Annotator "NA"]
[PlyCount "56"]
[EventDate "2018.12.26"]
[EventType "swiss"]
[EventCountry "ESP"]
[SourceTitle "playchess.com"]
[Source "ChessBase"]
[SourceQuality "1"]
[TimeControl "5400+30"]

1. d4 {[%emt 0:00:00]} Nf6 {[%emt 0:00:11]} 2. Nf3 {[%emt 0:00:00]} e6 {[%emt 0:00:05]} 3. c4 {[%emt 0:00:28]} d5 {[%emt 0:00:09]} 4. g3 {[%emt 0:00:42]} c5 {[%emt 0:00:07]} 5. cxd5 {[%emt 0:06:06]} exd5 {[%emt 0:00:08]} 6. Bg2 {[%emt 0:00:04]} Nc6 {[%emt 0:00:07]} 7. O-O {[%emt 0:00:09]} Bg4 {[%emt 0:00:02]} 8. Ne5 {[%emt 0:08:04]} cxd4 {[%emt 0:00:06]} 9. Nxg4 {[%emt 0:03:45]} Nxg4 {[%emt 0:00:05]} 10. e4 {[%emt 0:04:16]} Nf6 {[%emt 0:00:05]} 11. exd5 {[%emt 0:01:02]} Nxd5 {[%emt 0:00:05]} 12. Qb3 {[%emt 0:05:42]} Nb6 {[%emt 0:00:04]} 13. a4 {[%emt 0:01:23]} a5 {[%emt 0:10:00]} 14. Bg5 {[%emt 0:17:13]} Be7 {[%emt 0:05:23]} 15. Bxc6+ {[%emt 0:06:54]} bxc6 {[%emt 0:00:05]} 16. Bxe7 {[%emt 0:00:44]} Kxe7 {[%emt 0:00:04]} 17. Nd2 {[%emt 0:03:42]} Nd5 {[%emt 0:08:45]} 18. Rac1 {[%emt 0:05:26]} Nb4 {[%emt 0:00:37]} 19. Rc5 {[%emt 0:06:37]} Re8 {[%emt 0:04:22]} 20. Nc4 {[%emt 0:04:38]} Kf8 {[%emt 0:01:11]} 21. Nxa5 {[%emt 0:00:55]} Qb6 {[%emt 0:00:04]} 22. Rf5 {[%emt 0:01:09]} Nd5 {[%emt 0:00:06]} 23. Qxb6 {[%emt 0:00:53]} Nxb6 {[%emt 0:00:04]} 24. Nxc6 {[%emt 0:01:41]} Nxa4 {[%emt 0:06:46]} 25. b3 {[%emt 0:00:35]} g6 {[%emt 0:00:07]} 26. Rf3 {[%emt 0:01:26]} Nc5 {[%emt 0:00:09]} 27. Nxd4 {[%emt 0:01:21]} Rad8 {[%emt 0:01:03]} 28. Rc1 {[%emt 0:01:50]} Ne4 {[%emt 0:00:17]} 0-1

[Event "VII Lorca Open 2018"]
[Site "Lorca"]
[Date "2018.12.29"]
[Round "7"]
[White "Domingo Nunez, Ruben"]
[Black "Garrido Outon, Alex"]
[Result "1-0"]
[ECO "A07"]
[WhiteElo "2383"]
[BlackElo "2097"]
[Annotator "ChessBase"]
[PlyCount "37"]
[EventDate "2018.12.26"]
[EventType "swiss"]
[EventCountry "ESP"]
[SourceTitle "playchess.com"]
[Source "ChessBase"]
[SourceQuality "1"]
[TimeControl "5400+30"]

1. Nf3 {[%emt 0:00:00]} Nf6 {[%emt 0:00:08]} 2. g3 {[%emt 0:00:00]} d5 {[%emt 0:00:31]} 3. Bg2 {[%emt 0:00:00]} Bf5 {[%emt 0:00:11]} 4. O-O {[%emt 0:00:02]} e6 {[%emt 0:00:16]} 5. b3 {[%emt 0:00:20]} Be7 {[%emt 0:00:55]} 6. Bb2 {[%emt 0:00:05]} h6 {[%emt 0:01:00]} 7. d3 {[%emt 0:00:09]} O-O {[%emt 0:00:14]} 8. Nbd2 {[%emt 0:00:04]} a5 {[%emt 0:02:47]} 9. a4 {[%emt 0:00:05]} Bh7 {[%emt 0:01:56]} 10. Ne5 {[%emt 0:01:15]} Nbd7 {[%emt 0:06:18]} 11. e4 {[%emt 0:06:11]} Nxe5 {[%emt 0:08:19]} 12. Bxe5 {[%emt 0:00:11]} c6 {[%emt 0:00:24]} 13. Qe2 {[%emt 0:02:25]} Qb6 {[%emt 0:05:20]} 14. Bb2 {[%emt 0:20:13]} Rfe8 {[%emt 0:11:02]} 15. e5 {[%emt 0:08:46]} Nd7 {[%emt 0:00:17]} 16. Kh1 {[%emt 0:00:06]} Qc5 {[%emt 0:08:31]} 17. Rfc1 {[%emt 0:02:40]} b5 {[%emt 0:03:26]} 18. f4 {[%emt 0:16:35]} Qb6 {[%emt 0:05:41]} 19. g4 {[%emt 0:10:01]} 1-0

[Event "VII Lorca Open 2018"]
[Site "Lorca"]
[Date "2018.12.29"]
[Round "7"]
[White "Valmana Canto, Jaime"]
[Black "Ibarra Jerez, Jose Carlos"]
[Result "1/2-1/2"]
[ECO "A09"]
[WhiteElo "2359"]
[BlackElo "2558"]
[Annotator "ChessBase"]
[PlyCount "35"]
[EventDate "2018.12.26"]
[EventType "swiss"]
[EventCountry "ESP"]
[SourceTitle "playchess.com"]
[Source "ChessBase"]
[SourceQuality "1"]
[TimeControl "5400+30"]

1. Nf3 {[%emt 0:05:00]} d5 {[%emt 0:00:24]} 2. g3 {[%emt 0:00:08]} g6 {[%emt 0:03:55]} 3. Bg2 {[%emt 0:01:15]} Bg7 {[%emt 0:00:10]} 4. c4 {[%emt 0:00:07]} dxc4 {[%emt 0:00:55]} 5. Qa4+ {[%emt 0:04:36]} Nc6 {[%emt 0:01:06]} 6. Qxc4 {[%emt 0:01:00]} e5 {[%emt 0:01:17]} 7. d3 {[%emt 0:07:14]} h6 {[%emt 0:10:50]} 8. Nc3 {[%emt 0:08:53]} Nge7 {[%emt 0:01:10]} 9. Bd2 {[%emt 0:04:05]} O-O {[%emt 0:01:43]} 10. O-O {[%emt 0:02:07]} Be6 {[%emt 0:05:38]} 11. Qa4 {[%emt 0:00:27]} Nd4 {[%emt 0:02:11]} 12. Rfc1 {[%emt 0:04:01]} c6 {[%emt 0:03:52]} 13. b4 {[%emt 0:06:11]} Bg4 {[%emt 0:14:15]} 14. Nxd4 {[%emt 0:13:22]} exd4 {[%emt 0:01:01]} 15. Ne4 {[%emt 0:00:05]} Bxe2 {[%emt 0:06:01]} 16. Qc2 {[%emt 0:00:24]} Bg4 {[%emt 0:02:18]} 17. a4 {[%emt 0:00:16]} Nd5 {[%emt 0:02:28]} 18. b5 {[%emt 0:04:27]} 1/2-1/2

[Event "VII Lorca Open 2018"]
[Site "Lorca"]
[Date "2018.12.29"]
[Round "7"]
[White "Garcia Ramos, Daniel"]
[Black "Suarez Uriel, Adrian"]
[Result "0-1"]
[ECO "C41"]
[WhiteElo "2304"]
[BlackElo "2386"]
[Annotator "ChessBase"]
[PlyCount "28"]
[EventDate "2018.12.26"]
[EventType "swiss"]
[EventCountry "ESP"]
[SourceTitle "playchess.com"]
[Source "ChessBase"]
[SourceQuality "1"]
[TimeControl "5400+30"]

1. e4 {[%emt 0:00:00]} d6 {[%emt 0:03:23]} 2. d4 {[%emt 0:00:00]} Nf6 {[%emt 0:00:03]} 3. Nc3 {[%emt 0:00:09]} e5 {[%emt 0:00:05]} 4. Nf3 {[%emt 0:00:17]} Nbd7 {[%emt 0:00:05]} 5. Bc4 {[%emt 0:00:16]} Be7 {[%emt 0:00:04]} 6. O-O {[%emt 0:00:42]} exd4 {[%emt 0:00:33]} 7. Nxd4 {[%emt 0:01:28]} Nb6 {[%emt 0:00:06]} 8. Be2 {[%emt 0:03:39]} O-O {[%emt 0:00:31]} 9. Re1 {[%emt 0:03:13]} c6 {[%emt 0:00:19]} 10. a4 {[%emt 0:11:23]} a5 {[%emt 0:00:07]} 11. Qd3 {[%emt 0:06:42]} d5 {[%emt 0:05:48]} 12. e5 {[%emt 0:00:30]} Nfd7 {[%emt 0:00:30]} 13. Qg3 {[%emt 0:00:30]} Bh4 {[%emt 0:00:30]} 14. Qf4 {[%emt 0:00:30]} Nc5 {[%emt 0:00:30]} 0-1

[Event "VII Lorca Open 2018"]
[Site "Lorca"]
[Date "2018.12.29"]
[Round "7"]
[White "Espineira Gonzalez, Diego"]
[Black "Serarols Mabras, Bernat"]
[Result "1/2-1/2"]
[ECO "B15"]
[WhiteElo "2299"]
[BlackElo "2371"]
[Annotator "NA"]
[PlyCount "34"]
[EventDate "2018.12.26"]
[EventType "swiss"]
[EventCountry "ESP"]
[SourceTitle "playchess.com"]
[Source "ChessBase"]
[SourceQuality "1"]
[TimeControl "5400+30"]

1. e4 {[%emt 0:03:48]} c6 {[%emt 0:00:01]} 2. d4 {[%emt 0:00:06]} d5 {[%emt 0:00:08]} 3. Nc3 {[%emt 0:00:21]} dxe4 {[%emt 0:00:09]} 4. Nxe4 {[%emt 0:00:05]} Nf6 {[%emt 0:00:10]} 5. Nxf6+ {[%emt 0:00:06]} exf6 {[%emt 0:00:07]} 6. c3 {[%emt 0:00:57]} Bd6 {[%emt 0:00:54]} 7. Bd3 {[%emt 0:00:22]} O-O {[%emt 0:00:12]} 8. Ne2 {[%emt 0:00:25]} Re8 {[%emt 0:00:41]} 9. Qc2 {[%emt 0:00:31]} g6 {[%emt 0:00:11]} 10. Be3 {[%emt 0:03:31]} Be6 {[%emt 0:02:49]} 11. O-O {[%emt 0:02:45]} Qc7 {[%emt 0:00:11]} 12. h3 {[%emt 0:01:04]} Nd7 {[%emt 0:00:05]} 13. Qd2 {[%emt 0:07:57]} f5 {[%emt 0:03:31]} 14. Bf4 {[%emt 0:03:31]} Nf6 {[%emt 0:06:44]} 15. Bxd6 {[%emt 0:01:43]} Qxd6 {[%emt 0:00:09]} 16. Qf4 {[%emt 0:01:03]} Rad8 {[%emt 0:04:13]} 17. Rfe1 {[%emt 0:06:53]} Nh5 1/2-1/2